fUSD/lending_fUSD_20251117
["ID","MTS","AMOUNT","RATE_DAILY","PERIOD"]
[394197431,1763371851288,-538.0,0.00025263,2]
[394197432,1763371851297,-538.0,0.00025271,2]
[394197433,1763371851306,-538.0,0.00025337,2]
[394197434,1763371851315,-290.0,0.00025393,7]
[394197435,1763371851324,-185.403442,0.00025393,2]
[394197436,1763371851333,-515.67031601,0.00025425,2]
[394197437,1763371851341,-538.0,0.00025436,2]
[394197438,1763371851351,-538.0,0.0002544,2]
[394197439,1763371851360,-168.0,0.00025452,7]
[394197440,1763371851369,-169.32,0.00025491,120]
[394197441,1763371851378,-3029.66,0.000255,7]
[394197442,1763371851387,-538.0,0.0002551,2]
[394197443,1763371851396,-515.67031601,0.00025534,2]
[394197444,1763371851405,-168.0,0.00025563,2]
[394197445,1763371851415,-290.0,0.00025576,2]
[394197446,1763371851424,-515.67031601,0.00025616,2]
[394197447,1763371851437,-168.0,0.00025617,2]
[394197448,1763371851447,-1208.76,0.00025667,2]
[394197449,1763371851457,-1240.63,0.00025667,2]
[394197450,1763371851468,-159.96,0.00025718,2]
[394197451,1763371851478,-515.67031601,0.00025726,2]
[394197452,1763371851488,-317.0,0.00025775,7]
[394197453,1763371851497,-332.60791905,0.00025834,2]
[394197454,1763371851509,-515.67031601,0.00025836,2]
[394197455,1763371851518,-176.87,0.0002586,2]
[394197456,1763371851528,-20121.20229531,0.00025879,2]
[394197457,1763371851538,-515.67031601,0.00025945,2]
[394197458,1763371851548,-1289.04,0.00025947,2]
[394197459,1763371851557,-1069.59751815,0.00025957,10]
[394197460,1763371851566,-500.0,0.00025999,7]
[394197461,1763371851575,-4476.42566463,0.00026,2]
[394197462,1763371851584,-4609.0,0.00026015,2]
[394197463,1763371851594,-515.67031601,0.00026027,2]
[394197464,1763371851603,-168.0,0.00026033,2]
[394197465,1763371851612,-168.0,0.00026046,2]
[394197466,1763371851623,-608.0,0.00026068,2]
[394197467,1763371851633,-1604.0,0.00026068,2]
[394197468,1763371851642,-705.0,0.00026068,2]
[394197469,1763371851650,-575.0,0.00026068,2]
[394197470,1763371851660,-1599.0,0.00026068,2]
[394197471,1763371851670,-821.0,0.00026068,2]
[394197472,1763371851679,-793.0,0.00026068,2]
[394197473,1763371851689,-1275.0,0.00026068,2]
[394197474,1763371851698,-1191.0,0.00026068,2]
[394197475,1763371851707,-907.0,0.00026068,2]
[394197476,1763371851717,-515.67031601,0.00026137,2]
[394197477,1763371851726,-168.0,0.00026196,2]
[394197478,1763371851735,-168.0,0.00026217,2]
[394197479,1763371851744,-515.67031601,0.00026247,2]
[394197480,1763371851753,-1000.0,0.00026308,2]
[394197481,1763371851763,-168.0,0.00026312,2]
[394197482,1763371851772,-515.67031601,0.00026329,2]
[394197483,1763371851781,-515.67031601,0.00026438,2]
[394197484,1763371851791,-2417.52,0.00026489,2]
[394197485,1763371851801,-1208.76,0.00026489,2]
[394197486,1763371851810,-1208.76,0.00026489,2]
[394197487,1763371851819,-1208.76,0.00026489,2]
[394197488,1763371851829,-2417.52,0.00026489,2]
[394197489,1763371851838,-515.67031601,0.00026548,2]
[394197490,1763371851847,-168.0,0.00026657,2]
[394197491,1763371851857,-478.6,0.00026676,2]
[394197492,1763371851866,-3029.66,0.000267,7]
[394197493,1763371851875,-168.0,0.00026723,2]
[394197494,1763371851884,-550.22,0.00026807,2]
[394197495,1763371851893,-550.22,0.00026807,2]
[394197496,1763371851903,-998.49,0.00026807,2]
[394197497,1763371851913,-500.0,0.00027058,7]
[394197498,1763371851923,-344.91441206,0.00027203,2]
[394197499,1763371851932,-500.0,0.00027254,7]
[394197500,1763371851941,-151.0,0.00027301,7]
[394197501,1763371851950,-151.0,0.00027301,7]
[394197502,1763371851959,-151.0,0.00027301,7]
[394197503,1763371851968,-151.837013,0.00027301,7]
[394197504,1763371851977,-165.086666,0.00027301,7]
[394197505,1763371851986,-151.0,0.00027301,7]
[394197506,1763371851995,-151.0,0.00027301,7]
[394197507,1763371852004,-151.0,0.00027301,7]
[394197508,1763371852013,-151.0,0.00027301,7]
[394197509,1763371852022,-151.0,0.00027301,7]
[394197510,1763371852031,-151.0,0.00027301,7]
[394197511,1763371852040,-151.0,0.00027301,7]
[394197512,1763371852050,-152.167951,0.00027301,7]
[394197513,1763371852059,-151.0,0.00027301,7]
[394197514,1763371852068,-151.543956,0.00027301,7]
[394197515,1763371852077,-151.0,0.00027301,7]
[394197516,1763371852087,-151.0,0.00027301,7]
[394197517,1763371852096,-317.0,0.00027386,7]
[394197518,1763371852106,-151.0,0.00027387,7]
[394197519,1763371852115,-151.0,0.00027387,7]
[394197520,1763371852128,-435.342005,0.00027387,7]
[394197521,1763371852137,-435.342005,0.00027387,7]
[394197522,1763371852146,-151.0,0.00027387,7]
[394197523,1763371852155,-435.342005,0.00027387,7]
[394197524,1763371852164,-151.0,0.00027387,7]
[394197525,1763371852174,-435.342005,0.00027387,7]
[394197526,1763371852183,-153.194124,0.00027387,7]
[394197527,1763371852192,-241.081929,0.00027387,7]
[394197528,1763371852201,-151.0,0.00027387,7]
[394197529,1763371852211,-151.44452,0.00027387,7]
[394197530,1763371852220,-151.0,0.00027387,7]
[394197531,1763371852229,-589.96183,0.00027387,7]
[394197532,1763371852239,-151.0,0.00027387,7]
[394197533,1763371852248,-151.0,0.00027387,7]
[394197534,1763371852256,-151.0,0.00027387,7]
[394197535,1763371852266,-589.96183,0.00027387,7]
[394197536,1763371852275,-151.0,0.00027387,7]
[394197537,1763371852284,-332.626043,0.00027387,7]
[394197538,1763371852293,-255.950202,0.00027387,7]
[394197539,1763371852304,-589.96183,0.00027387,7]
[394197540,1763371852314,-255.950202,0.00027387,7]
[394197541,1763371852324,-332.626043,0.00027387,7]
[394197542,1763371852333,-589.96183,0.00027387,7]
[394197543,1763371852341,-151.0,0.00027387,7]
[394197544,1763371852352,-255.950202,0.00027387,7]
[394197545,1763371852362,-332.626043,0.00027387,7]
[394197546,1763371852371,-255.950202,0.00027387,7]
[394197547,1763371852382,-332.626043,0.00027387,7]
[394197548,1763371852392,-151.0,0.00027387,7]
[394197549,1763371852401,-151.0,0.00027387,7]
[394197550,1763371852410,-151.0,0.00027387,7]
[394197551,1763371852419,-151.0,0.00027387,7]
[394197552,1763371852431,-151.0,0.00027387,7]
[394197553,1763371852440,-151.0,0.00027387,7]
[394197554,1763371852449,-151.0,0.00027387,7]
[394197555,1763371852459,-151.0,0.00027387,7]
[394197556,1763371852468,-153.815528,0.00027387,7]
[394197557,1763371852477,-151.0,0.00027387,7]
[394197558,1763371852486,-151.0,0.00027387,7]
[394197559,1763371852495,-151.0,0.00027387,7]
[394197560,1763371852506,-155.080985,0.00027387,7]
[394197561,1763371852515,-193.51588791,0.00027397,2]
[394197562,1763371852524,-151.0,0.00027397,7]
[394197563,1763371852534,-151.993024,0.00027397,7]
[394197564,1763371852543,-151.0,0.00027397,7]
[394197565,1763371852552,-155.440281,0.00027397,7]
[394197566,1763371852562,-151.0,0.00027397,7]
[394197567,1763371852571,-151.0,0.00027397,7]
[394197568,1763371852581,-151.0,0.00027397,7]
[394197569,1763371852590,-151.0,0.00027397,7]
[394197570,1763371852792,-151.0,0.00027397,7]
[394197571,1763371852803,-151.0,0.00027397,7]
[394197572,1763371852813,-155.558474,0.00027397,7]
[394197573,1763371852823,-175.078887,0.00027397,7]
[394197574,1763371852832,-151.0,0.00027397,7]
[394197575,1763371852841,-151.0,0.00027397,7]
[394197576,1763371852850,-151.0,0.00027397,7]
[394197577,1763371852859,-151.000001,0.00027397,7]
[394197578,1763371852868,-153.075849,0.00027397,7]
[394197579,1763371852877,-151.0,0.00027397,7]
[394197580,1763371852886,-151.0,0.00027397,7]
[394197581,1763371852895,-151.0,0.00027397,7]
[394197582,1763371852905,-151.0,0.00027397,7]
[394197583,1763371852914,-151.0,0.00027397,7]
[394197584,1763371852923,-211.796487,0.00027397,7]
[394197585,1763371852932,-151.0,0.00027397,7]
[394197586,1763371852941,-151.0,0.00027397,7]
[394197587,1763371852950,-151.0,0.00027397,7]
[394197588,1763371852959,-151.0,0.00027397,7]
[394197589,1763371852968,-162.637628,0.00027397,7]
[394197590,1763371852978,-376.962864,0.00027397,7]
[394197591,1763371852988,-376.962864,0.00027397,7]
[394197592,1763371852998,-376.962864,0.00027397,7]
[394197593,1763371853009,-376.962864,0.00027397,7]
[394197594,1763371853019,-259.214647,0.00027397,7]
[394197595,1763371853028,-407.24,0.00027397,2]
[394197596,1763371853039,-300.0,0.00027397,2]
[394197597,1763371853048,-500.0,0.00027397,2]
[394197598,1763371853058,-31679.03,0.00027397,2]
[394197599,1763371853067,-500.0,0.00027397,15]
[394197600,1763371853075,-151.0,0.0002747,7]
[394197601,1763371853084,-151.0,0.0002747,7]
[394197602,1763371853092,-182.053928,0.0002747,7]
[394197603,1763371853100,-151.0,0.0002747,7]
[394197604,1763371853108,-151.0,0.0002747,7]
[394197605,1763371853118,-151.0,0.0002747,7]
[394197606,1763371853127,-151.0,0.0002747,7]
[394197607,1763371853136,-151.0,0.0002747,7]
[394197608,1763371853146,-151.0,0.0002747,7]
[394197609,1763371853155,-151.0,0.0002747,7]
[394197610,1763371853164,-151.0,0.0002747,7]
[394197611,1763371853173,-151.0,0.0002747,7]
[394197612,1763371853183,-151.0,0.0002747,7]
[394197613,1763371853192,-151.0,0.0002747,7]
[394197614,1763371853201,-151.0,0.0002747,7]
[394197615,1763371853211,-151.0,0.0002747,7]
[394197616,1763371853221,-151.0,0.0002747,7]
[394197617,1763371853230,-151.0,0.0002747,7]
[394197618,1763371853240,-153.045892,0.0002747,7]
[394197619,1763371853249,-219.399204,0.0002747,7]
[394197620,1763371853258,-219.399204,0.0002747,7]
[394197621,1763371853268,-219.399204,0.0002747,7]
[394197622,1763371853277,-219.399204,0.0002747,7]
[394197623,1763371853286,-151.0,0.0002747,7]
[394197624,1763371853296,-151.0,0.0002747,7]
[394197625,1763371853305,-151.0,0.0002747,7]
[394197626,1763371853315,-151.0,0.0002747,7]
[394197627,1763371853325,-151.0,0.0002747,7]
[394197628,1763371853334,-151.0,0.0002747,7]
[394197629,1763371853344,-151.0,0.0002747,7]
[394197630,1763371853354,-151.0,0.0002747,7]
[394197631,1763371853364,-151.0,0.0002747,7]
[394197632,1763371853373,-151.0,0.0002747,7]
[394197633,1763371853383,-151.0,0.0002747,7]
[394197634,1763371853393,-151.0,0.0002747,7]
[394197635,1763371853403,-151.0,0.0002747,7]
[394197636,1763371853413,-152.879543,0.0002747,7]
[394197637,1763371853426,-151.0,0.0002747,7]
[394197638,1763371853436,-151.0,0.0002747,7]
[394197639,1763371853446,-161.096738,0.0002747,7]
[394197640,1763371853456,-374.58708372,0.00027557,2]
[394197641,1763371853466,-317.0,0.00027616,14]
[394197642,1763371853477,-500.0,0.00027632,5]
[394197643,1763371853487,-500.0,0.00027671,15]
[394197644,1763371853497,-500.0,0.00027945,15]
[394197645,1763371853510,-1064.5,0.00027949,2]
[394197646,1763371853520,-151.0,0.00027949,7]
[394197647,1763371853530,-151.0,0.00027949,7]
[394197648,1763371853539,-152.32757,0.00027949,7]
[394197649,1763371853549,-151.0,0.00027949,7]
[394197650,1763371853559,-151.0,0.00027949,7]
[394197651,1763371853569,-151.0,0.00027949,7]
[394197652,1763371853579,-151.0,0.00027949,7]
[394197653,1763371853589,-151.0,0.00027949,7]
[394197654,1763371853599,-151.0,0.00027949,7]
[394197655,1763371853609,-245.28028,0.00027949,7]
[394197656,1763371853618,-151.0,0.00027949,7]
[394197657,1763371853628,-245.28028,0.00027949,7]
[394197658,1763371853638,-151.0,0.00027949,7]
[394197659,1763371853647,-245.28028,0.00027949,7]
[394197660,1763371853657,-151.0,0.00027949,7]
[394197661,1763371853668,-152.203246,0.00027949,7]
[394197662,1763371853677,-151.0,0.00027949,7]
[394197663,1763371853687,-245.28028,0.00027949,7]
[394197664,1763371853697,-151.0,0.00027949,7]
[394197665,1763371853707,-151.816085,0.00027949,7]
[394197666,1763371853717,-151.0,0.00027949,7]
[394197667,1763371853727,-151.0,0.00027949,7]
[394197668,1763371853737,-151.0,0.00027949,7]
[394197669,1763371853747,-152.740577,0.00027949,7]
[394197670,1763371853756,-151.0,0.00027949,7]
[394197671,1763371853767,-151.0,0.00027949,7]
[394197672,1763371853777,-151.0,0.00027949,7]
[394197673,1763371853786,-151.0,0.00027949,7]
[394197674,1763371853796,-151.0,0.00027949,7]
[394197675,1763371853805,-151.675622,0.00027949,7]
[394197676,1763371853815,-151.0,0.00027949,7]
[394197677,1763371853825,-1000.0,0.00028,120]
[394197678,1763371853835,-70559.75576082,0.00028,2]
[394197679,1763371853844,-250064.861544,0.00028,2]
[394197680,1763371853854,-151.0,0.00028,7]
[394197681,1763371853864,-151.0,0.00028,7]
[394197682,1763371853873,-435.342005,0.00028,7]
[394197683,1763371853883,-435.342005,0.00028,7]
[394197684,1763371853892,-151.0,0.00028,7]
[394197685,1763371853902,-435.342005,0.00028,7]
[394197686,1763371853912,-151.0,0.00028,7]
[394197687,1763371853923,-435.342005,0.00028,7]
[394197688,1763371853933,-151.0,0.00028,7]
[394197689,1763371853943,-151.0,0.00028,7]
[394197690,1763371853952,-151.0,0.00028,7]
[394197691,1763371853962,-589.96183,0.00028,7]
[394197692,1763371853972,-151.0,0.00028,7]
[394197693,1763371853981,-589.96183,0.00028,7]
[394197694,1763371853991,-332.626043,0.00028,7]
[394197695,1763371854000,-234.798427,0.00028,7]
[394197696,1763371854011,-255.950202,0.00028,7]
[394197697,1763371854020,-589.96183,0.00028,7]
[394197698,1763371854030,-255.950202,0.00028,7]
[394197699,1763371854039,-332.626043,0.00028,7]
[394197700,1763371854049,-589.96183,0.00028,7]
[394197701,1763371854058,-151.0,0.00028,7]
[394197702,1763371854068,-255.950202,0.00028,7]
[394197703,1763371854077,-332.626043,0.00028,7]
[394197704,1763371854087,-255.950202,0.00028,7]
[394197705,1763371854097,-332.626043,0.00028,7]
[394197706,1763371854107,-151.0,0.00028,7]
[394197707,1763371854116,-151.0,0.00028,7]
[394197708,1763371854126,-151.0,0.00028,7]
[394197709,1763371854136,-151.0,0.00028,7]
[394197710,1763371854146,-151.0,0.00028,7]
[394197711,1763371854155,-151.0,0.00028,7]
[394197712,1763371854165,-151.0,0.00028,7]
[394197713,1763371854174,-151.0,0.00028,7]
[394197714,1763371854184,-151.0,0.00028,7]
[394197715,1763371854193,-151.0,0.00028,7]
[394197716,1763371854202,-151.0,0.00028,7]
[394197717,1763371854211,-151.0,0.00028,7]
[394197718,1763371854221,-151.000007,0.00028,7]
[394197719,1763371854230,-151.0,0.00028,7]
[394197720,1763371854240,-151.0,0.00028,7]
[394197721,1763371854249,-151.0,0.00028,7]
[394197722,1763371854258,-256.849912,0.00028,7]
[394197723,1763371854268,-166.458112,0.00028,7]
[394197724,1763371854277,-151.0,0.00028,7]
[394197725,1763371854286,-151.0,0.00028,7]
[394197726,1763371854295,-151.0,0.00028,7]
[394197727,1763371854304,-256.849912,0.00028,7]
[394197728,1763371854313,-151.0,0.00028,7]
[394197729,1763371854322,-151.0,0.00028,7]
[394197730,1763371854331,-256.849912,0.00028,7]
[394197731,1763371854340,-151.0,0.00028,7]
[394197732,1763371854350,-152.464907,0.00028,7]
[394197733,1763371854359,-256.849912,0.00028,7]
[394197734,1763371854369,-203.657462,0.00028,7]
[394197735,1763371854378,-203.657462,0.00028,7]
[394197736,1763371854388,-203.657462,0.00028,7]
[394197737,1763371854397,-165.883715,0.00028,7]
[394197738,1763371854406,-203.657462,0.00028,7]
[394197739,1763371854415,-165.883715,0.00028,7]
[394197740,1763371854425,-151.0,0.00028,7]
[394197741,1763371854438,-165.883715,0.00028,7]
[394197742,1763371854448,-165.883715,0.00028,7]
[394197743,1763371854458,-50315.68509467,0.00028,2]
[394197744,1763371854468,-151.0,0.00028,7]
[394197745,1763371854478,-257.761796,0.00028,7]
[394197746,1763371854487,-257.761796,0.00028,7]
[394197747,1763371854497,-257.761796,0.00028,7]
[394197748,1763371854508,-193.672235,0.00028,7]
[394197749,1763371854518,-257.761796,0.00028,7]
[394197750,1763371854527,-151.0,0.00028,7]
[394197751,1763371854536,-151.0,0.00028,7]
[394197752,1763371854546,-151.0,0.00028,7]
[394197753,1763371854555,-151.0,0.00028,7]
[394197754,1763371854564,-151.0,0.00028,7]
[394197755,1763371854573,-151.0,0.00028,7]
[394197756,1763371854582,-151.0,0.00028,7]
[394197757,1763371854591,-151.0,0.00028,7]
[394197758,1763371854602,-151.0,0.00028,7]
[394197759,1763371854611,-151.0,0.00028,7]
[394197760,1763371854621,-151.0,0.00028,7]
[394197761,1763371854630,-151.0,0.00028,7]
[394197762,1763371854640,-151.0,0.00028,7]
[394197763,1763371854649,-151.0,0.00028,7]
[394197764,1763371854659,-151.0,0.00028,7]
[394197765,1763371854668,-151.0,0.00028,7]
[394197766,1763371854676,-151.0,0.00028,7]
[394197767,1763371854685,-376.962864,0.00028,7]
[394197768,1763371854694,-376.962864,0.00028,7]
[394197769,1763371854704,-376.962864,0.00028,7]
[394197770,1763371854714,-364.451564,0.00028,7]
[394197771,1763371854724,-376.962864,0.00028,7]
[394197772,1763371854734,-364.451564,0.00028,7]
[394197773,1763371854743,-364.451564,0.00028,7]
[394197774,1763371854752,-364.451564,0.00028,7]
[394197775,1763371854761,-158.7274,0.00028,7]
[394197776,1763371854770,-513.008002,0.00028,7]
[394197777,1763371854779,-335.956017,0.00028,7]
[394197778,1763371854789,-513.008002,0.00028,7]
[394197779,1763371854798,-151.0,0.00028,7]
[394197780,1763371854808,-335.956017,0.00028,7]
[394197781,1763371854817,-513.008002,0.00028,7]
[394197782,1763371854826,-151.0,0.00028,7]
[394197783,1763371854835,-513.008002,0.00028,7]
[394197784,1763371854845,-335.956017,0.00028,7]
[394197785,1763371854854,-151.0,0.00028,7]
[394197786,1763371854863,-335.956017,0.00028,7]
[394197787,1763371854873,-153.633799,0.00028,7]
[394197788,1763371854882,-151.0,0.00028,7]
[394197789,1763371854892,-181.337332,0.00028,7]
[394197790,1763371854901,-189.813334,0.00028,7]
[394197791,1763371854910,-189.813334,0.00028,7]
[394197792,1763371854920,-189.813334,0.00028,7]
[394197793,1763371854930,-189.813334,0.00028,7]
[394197794,1763371854939,-180.222763,0.00028,7]
[394197795,1763371854948,-180.222763,0.00028,7]
[394197796,1763371854958,-180.222763,0.00028,7]
[394197797,1763371854967,-180.222763,0.00028,7]
[394197798,1763371854977,-151.0,0.00028,7]
[394197799,1763371854986,-173.961542,0.00028,7]
[394197800,1763371854995,-173.961542,0.00028,7]
[394197801,1763371855004,-173.961542,0.00028,7]
[394197802,1763371855014,-173.961542,0.00028,7]
[394197803,1763371855022,-355.123468,0.00028,7]
[394197804,1763371855031,-355.123468,0.00028,7]
[394197805,1763371855041,-355.123468,0.00028,7]
[394197806,1763371855050,-644.285248,0.00028,7]
[394197807,1763371855059,-151.0,0.00028,7]
[394197808,1763371855067,-151.0,0.00028,7]
[394197809,1763371855077,-355.123468,0.00028,7]
[394197810,1763371855086,-644.285248,0.00028,7]
[394197811,1763371855156,-151.0,0.00028,7]
[394197812,1763371855166,-644.285248,0.00028,7]
[394197813,1763371855175,-644.285248,0.00028,7]
[394197814,1763371855184,-151.0,0.00028,7]
[394197815,1763371855193,-151.0,0.00028,7]
[394197816,1763371855202,-520.938436,0.00028,7]
[394197817,1763371855211,-151.0,0.00028,7]
[394197818,1763371855220,-520.938436,0.00028,7]
[394197819,1763371855229,-151.0,0.00028,7]
[394197820,1763371855239,-520.938436,0.00028,7]
[394197821,1763371855248,-151.0,0.00028,7]
[394197822,1763371855257,-520.938436,0.00028,7]
[394197823,1763371855266,-327.819716,0.00028,7]
[394197824,1763371855275,-327.819716,0.00028,7]
[394197825,1763371855284,-159.96,0.00028056,2]
[394197826,1763371855293,-479.1746172,0.000282,7]
[394197827,1763371855303,-500.0,0.00028219,15]
[394197828,1763371855311,-995.478,0.00028377,19]
[394197829,1763371855321,-172.906,0.00028377,19]
[394197830,1763371855330,-300.0,0.00028401,2]
[394197831,1763371855340,-500.0,0.00028483,7]
[394197832,1763371855349,-500.0,0.00028483,7]
[394197833,1763371855360,-500.0,0.00028483,7]
[394197834,1763371855369,-500.0,0.00028493,15]
[394197835,1763371855379,-5765.0,0.00028524,2]
[394197836,1763371855388,-357.6762453,0.00028572,2]
[394197837,1763371855398,-1000.0,0.000287,2]
[394197838,1763371855407,-162.8674096,0.00028723,2]
[394197839,1763371855416,-500.0,0.00028746,7]
[394197840,1763371855429,-500.0,0.00028767,15]
[394197841,1763371855438,-151.0,0.0002889,7]
[394197842,1763371855448,-151.0,0.0002889,7]
[394197843,1763371855457,-256.849912,0.0002889,7]
[394197844,1763371855467,-151.0,0.0002889,7]
[394197845,1763371855476,-151.0,0.0002889,7]
[394197846,1763371855486,-256.849912,0.0002889,7]
[394197847,1763371855496,-151.0,0.0002889,7]
[394197848,1763371855506,-151.0,0.0002889,7]
[394197849,1763371855516,-256.849912,0.0002889,7]
[394197850,1763371855526,-151.0,0.0002889,7]
[394197851,1763371855535,-256.849912,0.0002889,7]
[394197852,1763371855544,-203.657462,0.0002889,7]
[394197853,1763371855554,-203.657462,0.0002889,7]
[394197854,1763371855563,-203.657462,0.0002889,7]
[394197855,1763371855573,-165.883715,0.0002889,7]
[394197856,1763371855582,-203.657462,0.0002889,7]
[394197857,1763371855592,-165.883715,0.0002889,7]
[394197858,1763371855601,-151.0,0.0002889,7]
[394197859,1763371855611,-165.883715,0.0002889,7]
[394197860,1763371855621,-165.883715,0.0002889,7]
[394197861,1763371855631,-257.761796,0.0002889,7]
[394197862,1763371855641,-257.761796,0.0002889,7]
[394197863,1763371855651,-257.761796,0.0002889,7]
[394197864,1763371855661,-257.761796,0.0002889,7]
[394197865,1763371855670,-2000.0,0.000289,2]
[394197866,1763371855679,-500.0,0.00028967,7]
[394197867,1763371855688,-317.0,0.00028997,14]
[394197868,1763371855698,-584.63,0.00029,14]
[394197869,1763371855707,-16346.27185951,0.00029,2]
[394197870,1763371855717,-500.0,0.00029041,15]
[394197871,1763371855726,-608.0,0.00029068,2]
[394197872,1763371855735,-1604.0,0.00029068,2]
[394197873,1763371855746,-705.0,0.00029068,2]
[394197874,1763371855755,-1191.0,0.00029068,2]
[394197875,1763371855765,-907.0,0.00029068,2]
[394197876,1763371855774,-555.48,0.00029109,2]
[394197877,1763371855784,-503.75956972,0.0002913,5]
[394197878,1763371855793,-944.86,0.00029272,30]
[394197879,1763371855803,-500.0,0.00029305,7]
[394197880,1763371855814,-500.0,0.00029305,7]
[394197881,1763371855824,-500.0,0.00029315,15]
[394197882,1763371855833,-1076.36,0.00029437,2]
[394197883,1763371855842,-550.22,0.00029437,2]
[394197884,1763371855852,-500.0,0.00029523,11]
[394197885,1763371855861,-500.0,0.00029523,11]
[394197886,1763371855870,-500.0,0.00029523,11]
[394197887,1763371855880,-500.0,0.00029523,11]
[394197888,1763371855889,-500.0,0.00029523,11]
[394197889,1763371855899,-500.0,0.00029523,11]
[394197890,1763371855908,-500.0,0.00029523,11]
[394197891,1763371855918,-500.0,0.00029523,11]
[394197892,1763371855927,-500.0,0.00029589,15]
[394197893,1763371855935,-700.39,0.00029635,2]
[394197894,1763371855944,-700.39,0.00029635,2]
[394197895,1763371855953,-700.39,0.00029635,2]
[394197896,1763371855963,-700.39,0.00029635,2]
[394197897,1763371855972,-550.22,0.00029774,2]
[394197898,1763371855981,-550.22,0.00029774,2]
[394197899,1763371855990,-500.0,0.00029863,15]
[394197900,1763371855999,-78015.44918032,0.000299,2]
[394197901,1763371856008,-370.91026638,0.00029941,2]
[394197902,1763371856017,-219.086434,0.0002997,7]
[394197903,1763371856026,-151.0,0.0002997,7]
[394197904,1763371856035,-151.0,0.0002997,7]
[394197905,1763371856045,-151.0,0.0002997,7]
[394197906,1763371856054,-151.0,0.0002997,7]
[394197907,1763371856064,-151.0,0.0002997,7]
[394197908,1763371856075,-151.0,0.0002997,7]
[394197909,1763371856085,-214.564455,0.0002997,7]
[394197910,1763371856095,-214.564455,0.0002997,7]
[394197911,1763371856104,-214.564455,0.0002997,7]
[394197912,1763371856113,-214.564455,0.0002997,7]
[394197913,1763371856123,-151.0,0.0002997,7]
[394197914,1763371856131,-183.979307,0.0002997,7]
[394197915,1763371856140,-151.0,0.0002997,7]
[394197916,1763371856149,-151.0,0.0002997,7]
[394197917,1763371856158,-151.0,0.0002997,7]
[394197918,1763371856167,-270.282986,0.0002997,7]
[394197919,1763371856177,-151.0,0.0002997,7]
[394197920,1763371856186,-151.0,0.0002997,7]
[394197921,1763371856196,-151.0,0.0002997,7]
[394197922,1763371856204,-151.0,0.0002997,7]
[394197923,1763371856213,-151.0,0.0002997,7]
[394197924,1763371856223,-2000.0,0.00029976,2]
[394197925,1763371856232,-1069.59751815,0.00029999,15]
[394197926,1763371856242,-246.27100954,0.0003,2]
[394197927,1763371856251,-8756.08470786,0.0003,3]
[394197928,1763371856261,-17318.42849315,0.0003,5]
[394197929,1763371856269,-1401.40747916,0.0003,30]
[394197930,1763371856279,-12587.15625824,0.0003,13]